[Event "Titled Tuesday Blitz January 31 Late 2023"]
[White "Lucassen, Mickey"]
[Black "Zochowski, Kacper"]
[WhiteFideId "12919110"]
[BlackFideId "1125494"]
[WhiteElo "2023"]
[BlackElo "2262"]
[Result "1-0"]
[Round "06"]
[TimeControl "180+2"]
[Date "2023.01.31"]
[WhiteClock "0:00:12"]
[BlackClock "0:00:03"]

1. d4 {[%clk 0:03:00]}  d6 {[%clk 0:02:52]} 2. Nf3 {[%clk 0:02:59]}  Nf6 {[%clk 0:02:53]} 3. g3 {[%clk 0:02:59]}  Nbd7 {[%clk 0:02:53]} 4. Bg2 {[%clk 0:02:59]}  e5 {[%clk 0:02:53]} 5. O-O {[%clk 0:02:54]}  Be7 {[%clk 0:02:40]} 6. c4 {[%clk 0:02:53]}  O-O {[%clk 0:02:38]} 7. dxe5 {[%clk 0:02:52]}  dxe5 {[%clk 0:02:33]} 8. Nc3 {[%clk 0:02:50]}  c6 {[%clk 0:02:33]} 9. b3 {[%clk 0:02:47]}  Qc7 {[%clk 0:02:25]} 10. Bb2 {[%clk 0:02:47]}  Re8 {[%clk 0:02:23]} 11. Qc2 {[%clk 0:02:47]}  Bf8 {[%clk 0:02:23]} 12. e3 {[%clk 0:02:38]}  Nc5 {[%clk 0:02:22]} 13. Rad1 {[%clk 0:02:27]}  Bg4 {[%clk 0:02:22]} 14. h3 {[%clk 0:02:22]}  Bh5 {[%clk 0:02:21]} 15. e4 {[%clk 0:02:12]}  Ne6 {[%clk 0:02:09]} 16. Na4 {[%clk 0:02:06]}  Bxf3 {[%clk 0:02:06]} 17. Bxf3 {[%clk 0:02:03]}  Rad8 {[%clk 0:01:57]} 18. Rxd8 {[%clk 0:01:54]}  Rxd8 {[%clk 0:01:57]} 19. Rd1 {[%clk 0:01:55]}  Nd4 {[%clk 0:01:57]} 20. Bxd4 {[%clk 0:01:52]}  exd4 {[%clk 0:01:55]} 21. Nb2 {[%clk 0:01:52]}  c5 {[%clk 0:01:47]} 22. Nd3 {[%clk 0:01:51]}  b6 {[%clk 0:01:47]} 23. Nf4 {[%clk 0:01:50]}  Bd6 {[%clk 0:01:47]} 24. Nd5 {[%clk 0:01:46]}  Nxd5 {[%clk 0:01:46]} 25. exd5 {[%clk 0:01:47]}  Re8 {[%clk 0:01:47]} 26. Be4 {[%clk 0:01:41]}  g6 {[%clk 0:01:46]} 27. Kg2 {[%clk 0:01:39]}  f5 {[%clk 0:01:46]} 28. Bd3 {[%clk 0:01:39]}  f4 {[%clk 0:01:40]} 29. g4 {[%clk 0:01:35]}  f3+ {[%clk 0:01:32]} 30. Kxf3 {[%clk 0:01:33]}  Bg3 {[%clk 0:01:32]} 31. Kg2 {[%clk 0:01:21]}  Bh4 {[%clk 0:01:27]} 32. Bxg6 {[%clk 0:01:02]}  Rf8 {[%clk 0:01:21]} 33. Bf5 {[%clk 0:01:01]}  h5 {[%clk 0:01:21]} 34. Re1 {[%clk 0:00:56]}  Qf4 {[%clk 0:01:14]} 35. Re4 {[%clk 0:00:37]}  Qg5 {[%clk 0:01:03]} 36. f4 {[%clk 0:00:34]}  Qg7 {[%clk 0:00:58]} 37. Re6 {[%clk 0:00:31]}  d3 {[%clk 0:00:53]} 38. Qxd3 {[%clk 0:00:28]}  Qb2+ {[%clk 0:00:49]} 39. Re2 {[%clk 0:00:28]}  Qg7 {[%clk 0:00:48]} 40. d6 {[%clk 0:00:23]}  hxg4 {[%clk 0:00:34]} 41. hxg4 {[%clk 0:00:23]}  Bf6 {[%clk 0:00:27]} 42. d7 {[%clk 0:00:21]}  Bd4 {[%clk 0:00:27]} 43. Re6 {[%clk 0:00:20]}  Bf6 {[%clk 0:00:04]} 44. Qd5 {[%clk 0:00:15]}  Kh8 {[%clk 0:00:04]} 45. Re8 {[%clk 0:00:13]}  Bd8 {[%clk 0:00:03]} 46. Rxf8+ {[%clk 0:00:12]}  Qxf8 {[%clk 0:00:03]} 47. Qe6 {[%clk 0:00:13]}  Qg7 {[%clk 0:00:02]} 48. Qe8+ {[%clk 0:00:13]}  Qg8 {[%clk 0:00:03]} 49. Be6 {[%clk 0:00:12]} 1-0


[Site "https://www.chess.com"]

[Event "Titled Tuesday Blitz January 31 Late 2023"]
[White "Fernandez Siles, Luis"]
[Black "Jeet, Jain"]
[WhiteFideId "2209420"]
[BlackFideId "5073022"]
[WhiteElo "2218"]
[BlackElo "2199"]
[Result "0-1"]
[Round "06"]
[TimeControl "180+2"]
[Date "2023.01.31"]
[WhiteClock "0:00:26"]
[BlackClock "0:01:36"]

1. d4 {[%clk 0:03:00]}  Nf6 {[%clk 0:02:56]} 2. c4 {[%clk 0:03:00]}  c5 {[%clk 0:02:51]} 3. d5 {[%clk 0:03:00]}  e6 {[%clk 0:02:47]} 4. Nf3 {[%clk 0:02:58]}  exd5 {[%clk 0:02:46]} 5. cxd5 {[%clk 0:02:57]}  d6 {[%clk 0:02:46]} 6. Nc3 {[%clk 0:02:57]}  g6 {[%clk 0:02:47]} 7. h3 {[%clk 0:02:54]}  Bg7 {[%clk 0:02:45]} 8. e4 {[%clk 0:02:54]}  O-O {[%clk 0:02:45]} 9. Bd3 {[%clk 0:02:55]}  Re8 {[%clk 0:02:40]} 10. O-O {[%clk 0:02:49]}  Na6 {[%clk 0:02:40]} 11. Re1 {[%clk 0:02:43]}  Nc7 {[%clk 0:02:38]} 12. a4 {[%clk 0:02:31]}  b6 {[%clk 0:02:33]} 13. Bf4 {[%clk 0:02:30]}  a6 {[%clk 0:02:28]} 14. Qb3 {[%clk 0:02:04]}  Rb8 {[%clk 0:02:27]} 15. Rad1 {[%clk 0:02:01]}  b5 {[%clk 0:02:24]} 16. axb5 {[%clk 0:01:42]}  axb5 {[%clk 0:02:25]} 17. Bb1 {[%clk 0:01:36]}  b4 {[%clk 0:02:23]} 18. Na4 {[%clk 0:01:26]}  Ba6 {[%clk 0:02:15]} 19. e5 {[%clk 0:01:25]}  dxe5 {[%clk 0:02:10]} 20. Bxe5 {[%clk 0:01:20]}  Nfxd5 {[%clk 0:02:01]} 21. Nxc5 {[%clk 0:01:08]}  Bxe5 {[%clk 0:01:57]} 22. Nxe5 {[%clk 0:01:04]}  Bb5 {[%clk 0:01:51]} 23. Ng4 {[%clk 0:00:43]}  Rxe1+ {[%clk 0:01:49]} 24. Rxe1 {[%clk 0:00:44]}  Qd6 {[%clk 0:01:46]} 25. Ne4 {[%clk 0:00:43]}  Qb6 {[%clk 0:01:43]} 26. Qf3 {[%clk 0:00:39]}  f5 {[%clk 0:01:42]} 27. Nh6+ {[%clk 0:00:39]}  Kg7 {[%clk 0:01:41]} 28. Qf4 {[%clk 0:00:26]}  Nxf4 {[%clk 0:01:36]} 0-1


[Site "https://www.chess.com"]

[Event "Titled Tuesday Blitz January 31 Late 2023"]
[White "Zampronha, Wladimir Camilo"]
[Black "Papayan, Oleg"]
[WhiteFideId "2103087"]
[BlackFideId "4193911"]
[WhiteElo "2176"]
[BlackElo "2253"]
[Result "0-1"]
[Round "06"]
[TimeControl "180+2"]
[Date "2023.01.31"]
[WhiteClock "0:00:35"]
[BlackClock "0:00:08"]

1. e4 {[%clk 0:03:00]}  d5 {[%clk 0:02:59]} 2. exd5 {[%clk 0:03:00]}  Qxd5 {[%clk 0:03:00]} 3. d4 {[%clk 0:02:58]}  Qd8 {[%clk 0:03:00]} 4. c4 {[%clk 0:02:57]}  c6 {[%clk 0:02:59]} 5. Nc3 {[%clk 0:02:57]}  Bf5 {[%clk 0:02:59]} 6. Nf3 {[%clk 0:02:56]}  e6 {[%clk 0:02:59]} 7. Bd3 {[%clk 0:02:56]}  Bxd3 {[%clk 0:02:54]} 8. Qxd3 {[%clk 0:02:57]}  Nd7 {[%clk 0:02:54]} 9. O-O {[%clk 0:02:55]}  Ngf6 {[%clk 0:02:54]} 10. d5 {[%clk 0:02:52]}  Nb6 {[%clk 0:02:43]} 11. Bg5 {[%clk 0:02:40]}  cxd5 {[%clk 0:02:41]} 12. cxd5 {[%clk 0:02:39]}  Nbxd5 {[%clk 0:02:41]} 13. Bxf6 {[%clk 0:02:37]}  Nxf6 {[%clk 0:02:34]} 14. Qe2 {[%clk 0:02:29]}  Be7 {[%clk 0:02:29]} 15. Rfd1 {[%clk 0:02:28]}  Qa5 {[%clk 0:02:23]} 16. Qb5+ {[%clk 0:02:19]}  Qxb5 {[%clk 0:02:22]} 17. Nxb5 {[%clk 0:02:20]}  O-O {[%clk 0:02:19]} 18. Ne5 {[%clk 0:02:20]}  a6 {[%clk 0:02:09]} 19. Nc3 {[%clk 0:02:16]}  Rfd8 {[%clk 0:02:05]} 20. Kf1 {[%clk 0:02:14]}  Bb4 {[%clk 0:01:56]} 21. Na4 {[%clk 0:02:04]}  b5 {[%clk 0:01:08]} 22. Rxd8+ {[%clk 0:02:01]}  Rxd8 {[%clk 0:01:08]} 23. Nc6 {[%clk 0:02:01]}  Rd2 {[%clk 0:00:56]} 24. Nxb4 {[%clk 0:02:02]}  bxa4 {[%clk 0:00:57]} 25. b3 {[%clk 0:01:47]}  Ng4 {[%clk 0:00:22]} 26. bxa4 {[%clk 0:01:33]}  Rxf2+ {[%clk 0:00:17]} 27. Kg1 {[%clk 0:01:30]}  Rf4 {[%clk 0:00:16]} 28. Rb1 {[%clk 0:01:14]}  g5 {[%clk 0:00:13]} 29. a5 {[%clk 0:01:12]}  Ne3 {[%clk 0:00:08]} 30. Nxa6 {[%clk 0:01:09]}  Ra4 {[%clk 0:00:09]} 31. Nc5 {[%clk 0:00:39]}  Rxa5 {[%clk 0:00:05]} 32. Ne4 {[%clk 0:00:40]}  Rxa2 {[%clk 0:00:03]} 33. Nxg5 {[%clk 0:00:39]}  Rxg2+ {[%clk 0:00:03]} 34. Kh1 {[%clk 0:00:36]}  Rxg5 {[%clk 0:00:04]} 35. Rg1 {[%clk 0:00:31]}  Rxg1+ {[%clk 0:00:03]} 36. Kxg1 {[%clk 0:00:32]}  f5 {[%clk 0:00:04]} 37. Kf2 {[%clk 0:00:32]}  Nd5 {[%clk 0:00:05]} 38. Kf3 {[%clk 0:00:33]}  Kf7 {[%clk 0:00:06]} 39. Ke2 {[%clk 0:00:33]}  Kf6 {[%clk 0:00:07]} 40. Kf3 {[%clk 0:00:34]}  e5 {[%clk 0:00:07]} 41. Ke2 {[%clk 0:00:35]}  e4 {[%clk 0:00:08]} 0-1


[Site "https://www.chess.com"]

[Event "Titled Tuesday Blitz January 31 Late 2023"]
[White "Olsson, William"]
[Black "Kochetov, Andrey"]
[WhiteFideId "1741721"]
[BlackFideId "24130532"]
[WhiteElo "2355"]
[BlackElo "2165"]
[Result "0-1"]
[Round "06"]
[TimeControl "180+2"]
[Date "2023.01.31"]
[WhiteClock "0:00:02"]
[BlackClock "0:00:05"]

1. c4 {[%clk 0:03:00]}  Nf6 {[%clk 0:02:59]} 2. g3 {[%clk 0:03:00]}  e6 {[%clk 0:02:58]} 3. Bg2 {[%clk 0:02:59]}  d5 {[%clk 0:02:58]} 4. Nf3 {[%clk 0:03:00]}  Be7 {[%clk 0:02:58]} 5. O-O {[%clk 0:03:01]}  O-O {[%clk 0:02:58]} 6. b3 {[%clk 0:03:00]}  b6 {[%clk 0:02:57]} 7. Bb2 {[%clk 0:03:01]}  Bb7 {[%clk 0:02:57]} 8. d4 {[%clk 0:03:00]}  dxc4 {[%clk 0:02:55]} 9. bxc4 {[%clk 0:03:00]}  c5 {[%clk 0:02:55]} 10. e3 {[%clk 0:02:48]}  Nbd7 {[%clk 0:02:48]} 11. Nbd2 {[%clk 0:02:46]}  Rc8 {[%clk 0:02:48]} 12. Qe2 {[%clk 0:02:45]}  Rc7 {[%clk 0:02:45]} 13. Rfd1 {[%clk 0:02:45]}  Qa8 {[%clk 0:02:45]} 14. Nh4 {[%clk 0:02:40]}  Rd8 {[%clk 0:02:38]} 15. Bxb7 {[%clk 0:02:34]}  Qxb7 {[%clk 0:02:37]} 16. Nhf3 {[%clk 0:02:34]}  Ne4 {[%clk 0:02:33]} 17. Nxe4 {[%clk 0:02:32]}  Qxe4 {[%clk 0:02:33]} 18. Nd2 {[%clk 0:02:31]}  Qb7 {[%clk 0:02:31]} 19. Nb3 {[%clk 0:02:26]}  cxd4 {[%clk 0:02:20]} 20. exd4 {[%clk 0:02:25]}  Nf6 {[%clk 0:02:20]} 21. c5 {[%clk 0:02:07]}  bxc5 {[%clk 0:02:13]} 22. dxc5 {[%clk 0:02:08]}  Nd5 {[%clk 0:02:08]} 23. Be5 {[%clk 0:02:00]}  Rcc8 {[%clk 0:01:56]} 24. Rac1 {[%clk 0:01:58]}  Qb4 {[%clk 0:01:41]} 25. c6 {[%clk 0:01:47]}  Qa4 {[%clk 0:01:35]} 26. Rd4 {[%clk 0:01:30]}  Qa3 {[%clk 0:01:23]} 27. Rdc4 {[%clk 0:01:25]}  Bf6 {[%clk 0:01:06]} 28. c7 {[%clk 0:01:19]}  Rd7 {[%clk 0:01:05]} 29. Nc5 {[%clk 0:01:01]}  Rdxc7 {[%clk 0:01:00]} 30. Bxc7 {[%clk 0:01:01]}  Rxc7 {[%clk 0:01:01]} 31. Nxe6 {[%clk 0:00:42]}  Qxc1+ {[%clk 0:00:41]} 32. Rxc1 {[%clk 0:00:41]}  Rxc1+ {[%clk 0:00:42]} 33. Kg2 {[%clk 0:00:41]}  Nc3 {[%clk 0:00:40]} 34. Qb2 {[%clk 0:00:31]}  Rb1 {[%clk 0:00:36]} 35. Qa3 {[%clk 0:00:14]}  fxe6 {[%clk 0:00:29]} 36. Qxa7 {[%clk 0:00:14]}  Rb2 {[%clk 0:00:27]} 37. a4 {[%clk 0:00:12]}  Ra2 {[%clk 0:00:18]} 38. Qb8+ {[%clk 0:00:12]}  Kf7 {[%clk 0:00:17]} 39. Qb7+ {[%clk 0:00:12]}  Kg6 {[%clk 0:00:16]} 40. h4 {[%clk 0:00:08]}  Rxa4 {[%clk 0:00:16]} 41. Kh3 {[%clk 0:00:07]}  Ra5 {[%clk 0:00:13]} 42. g4 {[%clk 0:00:06]}  h5 {[%clk 0:00:13]} 43. gxh5+ {[%clk 0:00:05]}  Rxh5 {[%clk 0:00:12]} 44. Qc8 {[%clk 0:00:02]}  Rxh4+ {[%clk 0:00:11]} 45. Kg3 {[%clk 0:00:03]}  Ne4+ {[%clk 0:00:10]} 46. Kg2 {[%clk 0:00:03]}  Rf4 {[%clk 0:00:08]} 47. f3 {[%clk 0:00:03]}  Ng5 {[%clk 0:00:08]} 48. Qc2+ {[%clk 0:00:03]}  Rf5 {[%clk 0:00:08]} 49. f4 {[%clk 0:00:02]}  Nf7 {[%clk 0:00:05]} 50. Qe4 {[%clk 0:00:02]}  Nd6 {[%clk 0:00:05]} 51. Qxe6 {[%clk 0:00:02]}  Nb5 {[%clk 0:00:04]} 52. Qe8+ {[%clk 0:00:02]}  Kh6 {[%clk 0:00:04]} 53. Kg3 {[%clk 0:00:02]}  Nd4 {[%clk 0:00:04]} 54. Kg4 {[%clk 0:00:02]}  Ne2 {[%clk 0:00:04]} 55. Qxe2 {[%clk 0:00:02]}  Rh5 {[%clk 0:00:04]} 56. Qe8 {[%clk 0:00:02]}  g6 {[%clk 0:00:04]} 57. Qf8+ {[%clk 0:00:01]}  Bg7 {[%clk 0:00:04]} 58. Qg8 {[%clk 0:00:02]}  Rf5 {[%clk 0:00:05]} 59. Qe8 {[%clk 0:00:02]}  Rh5 {[%clk 0:00:05]} 60. Qe6 {[%clk 0:00:02]}  Ra5 {[%clk 0:00:05]} 61. Qc6 {[%clk 0:00:03]}  Rh5 {[%clk 0:00:05]} 62. Qb6 {[%clk 0:00:02]}  Rh2 {[%clk 0:00:05]} 63. f5 {[%clk 0:00:01]}  Rg2+ {[%clk 0:00:04]} 64. Kf3 {[%clk 0:00:02]}  Rg5 {[%clk 0:00:04]} 65. f6 {[%clk 0:00:01]}  Rf5+ {[%clk 0:00:05]} 66. Kg4 {[%clk 0:00:01]}  Rxf6 {[%clk 0:00:04]} 67. Qe3+ {[%clk 0:00:02]}  Kh7 {[%clk 0:00:05]} 0-1


[Site "https://www.chess.com"]

[Event "Titled Tuesday Blitz January 31 Late 2023"]
[White "Smith, Garrett L"]
[Black "Aarav Dengla"]
[WhiteFideId "2024829"]
[BlackFideId "45059756"]
[WhiteElo "2047"]
[BlackElo "2343"]
[Result "1-0"]
[Round "06"]
[TimeControl "180+2"]
[Date "2023.01.31"]
[WhiteClock "0:00:17"]
[BlackClock "0:00:10"]

1. e4 {[%clk 0:03:00]}  c5 {[%clk 0:02:59]} 2. a3 {[%clk 0:03:00]}  d6 {[%clk 0:02:58]} 3. b4 {[%clk 0:02:58]}  cxb4 {[%clk 0:02:57]} 4. axb4 {[%clk 0:02:59]}  Nf6 {[%clk 0:02:57]} 5. Nc3 {[%clk 0:02:56]}  e6 {[%clk 0:02:56]} 6. Nf3 {[%clk 0:02:53]}  Be7 {[%clk 0:02:56]} 7. d4 {[%clk 0:02:51]}  O-O {[%clk 0:02:54]} 8. Bd3 {[%clk 0:02:50]}  d5 {[%clk 0:02:54]} 9. e5 {[%clk 0:02:49]}  Bxb4 {[%clk 0:02:54]} 10. Bd2 {[%clk 0:02:43]}  Bxc3 {[%clk 0:02:44]} 11. Bxc3 {[%clk 0:02:44]}  Nfd7 {[%clk 0:02:43]} 12. h4 {[%clk 0:02:34]}  f5 {[%clk 0:02:38]} 13. Ng5 {[%clk 0:02:25]}  Qe7 {[%clk 0:02:24]} 14. Qh5 {[%clk 0:02:01]}  h6 {[%clk 0:02:14]} 15. Qg6 {[%clk 0:01:23]}  hxg5 {[%clk 0:01:43]} 16. hxg5 {[%clk 0:01:19]}  Nc6 {[%clk 0:01:08]} 17. Kd2 {[%clk 0:01:06]}  Qe8 {[%clk 0:00:56]} 18. Qh7+ {[%clk 0:00:57]}  Kf7 {[%clk 0:00:57]} 19. Bb5 {[%clk 0:00:46]}  Rg8 {[%clk 0:00:19]} 20. Bxc6 {[%clk 0:00:34]}  bxc6 {[%clk 0:00:18]} 21. Bb4 {[%clk 0:00:34]}  Nf8 {[%clk 0:00:15]} 22. g6+ {[%clk 0:00:18]}  Nxg6 {[%clk 0:00:13]} 23. Rh6 {[%clk 0:00:19]}  Nf8 {[%clk 0:00:10]} 24. Rf6# {[%clk 0:00:17]} 1-0


[Site "https://www.chess.com"]

[Event "Titled Tuesday Blitz January 31 Late 2023"]
[White "Szyszylo, Rafal"]
[Black "Baches Garcia, Guillermo"]
[WhiteFideId "1109626"]
[BlackFideId "2209764"]
[WhiteElo "2091"]
[BlackElo "2327"]
[Result "0-1"]
[Round "06"]
[TimeControl "180+2"]
[Date "2023.01.31"]
[WhiteClock "0:00:07"]
[BlackClock "0:00:16"]

1. e4 {[%clk 0:03:00]}  c5 {[%clk 0:03:00]} 2. Nf3 {[%clk 0:02:56]}  d6 {[%clk 0:03:00]} 3. d4 {[%clk 0:02:56]}  cxd4 {[%clk 0:03:01]} 4. Nxd4 {[%clk 0:02:57]}  Nf6 {[%clk 0:03:02]} 5. Nc3 {[%clk 0:02:57]}  Nc6 {[%clk 0:03:02]} 6. Bc4 {[%clk 0:02:57]}  Bd7 {[%clk 0:03:02]} 7. Be3 {[%clk 0:02:57]}  Ng4 {[%clk 0:03:02]} 8. Nxc6 {[%clk 0:02:43]}  bxc6 {[%clk 0:03:01]} 9. Bd2 {[%clk 0:02:41]}  g6 {[%clk 0:02:50]} 10. Bb3 {[%clk 0:02:12]}  Bg7 {[%clk 0:02:46]} 11. O-O {[%clk 0:02:07]}  O-O {[%clk 0:02:46]} 12. h3 {[%clk 0:02:07]}  Nf6 {[%clk 0:02:44]} 13. f4 {[%clk 0:02:07]}  Qc7 {[%clk 0:02:36]} 14. Qe2 {[%clk 0:02:00]}  e5 {[%clk 0:02:31]} 15. fxe5 {[%clk 0:01:56]}  dxe5 {[%clk 0:02:31]} 16. Bg5 {[%clk 0:01:56]}  Nh5 {[%clk 0:02:25]} 17. Kh2 {[%clk 0:01:40]}  Nf4 {[%clk 0:02:19]} 18. Qe3 {[%clk 0:01:35]}  Be6 {[%clk 0:02:14]} 19. Bxe6 {[%clk 0:01:26]}  Nxe6 {[%clk 0:02:11]} 20. Bf6 {[%clk 0:01:17]}  Nf4 {[%clk 0:02:01]} 21. Bxg7 {[%clk 0:01:16]}  Kxg7 {[%clk 0:02:02]} 22. g3 {[%clk 0:01:13]}  Ne6 {[%clk 0:01:58]} 23. Rf2 {[%clk 0:01:10]}  Rad8 {[%clk 0:01:53]} 24. Raf1 {[%clk 0:01:10]}  f6 {[%clk 0:01:43]} 25. Na4 {[%clk 0:01:07]}  Qe7 {[%clk 0:01:37]} 26. c3 {[%clk 0:01:03]}  Rf7 {[%clk 0:01:28]} 27. b3 {[%clk 0:01:02]}  h5 {[%clk 0:01:21]} 28. h4 {[%clk 0:01:01]}  Qf8 {[%clk 0:01:16]} 29. Rd2 {[%clk 0:00:52]}  Rfd7 {[%clk 0:01:11]} 30. Rfd1 {[%clk 0:00:51]}  Qe7 {[%clk 0:01:08]} 31. b4 {[%clk 0:00:47]}  Rxd2+ {[%clk 0:00:57]} 32. Rxd2 {[%clk 0:00:48]}  Rxd2+ {[%clk 0:00:57]} 33. Qxd2 {[%clk 0:00:49]}  Kf7 {[%clk 0:00:57]} 34. Qe3 {[%clk 0:00:44]}  Qd7 {[%clk 0:00:56]} 35. Nb2 {[%clk 0:00:38]}  Kg7 {[%clk 0:00:44]} 36. Kg2 {[%clk 0:00:37]}  Nd8 {[%clk 0:00:41]} 37. Nc4 {[%clk 0:00:32]}  Nf7 {[%clk 0:00:41]} 38. Qd2 {[%clk 0:00:27]}  Qg4 {[%clk 0:00:38]} 39. Qd3 {[%clk 0:00:23]}  Qe6 {[%clk 0:00:33]} 40. Ne3 {[%clk 0:00:21]}  Qxa2+ {[%clk 0:00:32]} 41. Kf3 {[%clk 0:00:21]}  Qe6 {[%clk 0:00:30]} 42. Nc4 {[%clk 0:00:20]}  Qg4+ {[%clk 0:00:28]} 43. Kf2 {[%clk 0:00:20]}  Qe6 {[%clk 0:00:28]} 44. Na5 {[%clk 0:00:18]}  f5 {[%clk 0:00:20]} 45. Ke3 {[%clk 0:00:12]}  f4+ {[%clk 0:00:17]} 46. gxf4 {[%clk 0:00:11]}  exf4+ {[%clk 0:00:18]} 47. Kxf4 {[%clk 0:00:11]}  Qg4+ {[%clk 0:00:18]} 48. Ke3 {[%clk 0:00:11]}  Qxh4 {[%clk 0:00:18]} 49. Qd4+ {[%clk 0:00:11]}  Kg8 {[%clk 0:00:18]} 50. Qxa7 {[%clk 0:00:11]}  Qg3+ {[%clk 0:00:16]} 51. Kd2 {[%clk 0:00:09]}  Qf4+ {[%clk 0:00:16]} 52. Kd3 {[%clk 0:00:08]}  Qf3+ {[%clk 0:00:16]} 53. Kd4 {[%clk 0:00:07]}  Qf2+ {[%clk 0:00:16]} 0-1


[Site "https://www.chess.com"]

[Event "Titled Tuesday Blitz January 31 Late 2023"]
[White "Tinmaz, Kerem"]
[Black "Villarreal, Agustin"]
[WhiteFideId "44559151"]
[BlackFideId "125687"]
[WhiteElo "2177"]
[BlackElo "2299"]
[Result "0-1"]
[Round "06"]
[TimeControl "180+2"]
[Date "2023.01.31"]
[WhiteClock "0:00:22"]
[BlackClock "0:01:40"]

1. e4 {[%clk 0:03:00]}  e5 {[%clk 0:02:58]} 2. Nf3 {[%clk 0:03:00]}  Nc6 {[%clk 0:02:58]} 3. Bb5 {[%clk 0:03:00]}  a6 {[%clk 0:02:59]} 4. Bxc6 {[%clk 0:03:00]}  dxc6 {[%clk 0:02:59]} 5. O-O {[%clk 0:03:00]}  Qf6 {[%clk 0:02:59]} 6. d4 {[%clk 0:02:59]}  exd4 {[%clk 0:03:00]} 7. Qxd4 {[%clk 0:02:59]}  Qxd4 {[%clk 0:02:57]} 8. Nxd4 {[%clk 0:03:00]}  Bd7 {[%clk 0:02:57]} 9. Be3 {[%clk 0:02:59]}  O-O-O {[%clk 0:02:57]} 10. Nc3 {[%clk 0:02:51]}  Bb4 {[%clk 0:02:57]} 11. Rad1 {[%clk 0:02:50]}  Bxc3 {[%clk 0:02:57]} 12. bxc3 {[%clk 0:02:50]}  Ne7 {[%clk 0:02:57]} 13. f3 {[%clk 0:02:45]}  Rhe8 {[%clk 0:02:57]} 14. Kf2 {[%clk 0:02:45]}  h6 {[%clk 0:02:57]} 15. Rd2 {[%clk 0:02:45]}  f5 {[%clk 0:02:57]} 16. e5 {[%clk 0:02:44]}  Nd5 {[%clk 0:02:57]} 17. f4 {[%clk 0:02:38]}  g5 {[%clk 0:02:56]} 18. g3 {[%clk 0:02:34]}  gxf4 {[%clk 0:02:53]} 19. Bxf4 {[%clk 0:02:22]}  Nxc3 {[%clk 0:02:53]} 20. Rd3 {[%clk 0:02:19]}  Ne4+ {[%clk 0:02:52]} 21. Kg1 {[%clk 0:02:16]}  c5 {[%clk 0:02:52]} 22. Nf3 {[%clk 0:02:11]}  Bb5 {[%clk 0:02:46]} 23. Rxd8+ {[%clk 0:02:10]}  Rxd8 {[%clk 0:02:46]} 24. Re1 {[%clk 0:02:07]}  h5 {[%clk 0:02:44]} 25. h3 {[%clk 0:01:45]}  Bc6 {[%clk 0:02:42]} 26. Nh4 {[%clk 0:01:44]}  Bd7 {[%clk 0:02:33]} 27. g4 {[%clk 0:01:44]}  hxg4 {[%clk 0:02:27]} 28. hxg4 {[%clk 0:01:43]}  Rg8 {[%clk 0:02:24]} 29. g5 {[%clk 0:01:29]}  Nxg5 {[%clk 0:02:20]} 30. Bxg5 {[%clk 0:01:29]}  Rxg5+ {[%clk 0:02:18]} 31. Kf2 {[%clk 0:01:30]}  Be6 {[%clk 0:02:13]} 32. Nf3 {[%clk 0:01:26]}  Rh5 {[%clk 0:02:12]} 33. Rg1 {[%clk 0:01:22]}  Bd5 {[%clk 0:02:08]} 34. Ng5 {[%clk 0:01:03]}  Rh2+ {[%clk 0:02:07]} 35. Ke3 {[%clk 0:01:02]}  Rxc2 {[%clk 0:02:07]} 36. Rf1 {[%clk 0:00:56]}  Rc3+ {[%clk 0:01:51]} 37. Kf4 {[%clk 0:00:54]}  Bxa2 {[%clk 0:01:49]} 38. Kxf5 {[%clk 0:00:52]}  a5 {[%clk 0:01:48]} 39. e6 {[%clk 0:00:52]}  Bxe6+ {[%clk 0:01:47]} 40. Nxe6 {[%clk 0:00:51]}  b6 {[%clk 0:01:47]} 41. Rd1 {[%clk 0:00:49]}  a4 {[%clk 0:01:42]} 42. Rd8+ {[%clk 0:00:38]}  Kb7 {[%clk 0:01:43]} 43. Rd7 {[%clk 0:00:38]}  a3 {[%clk 0:01:43]} 44. Rxc7+ {[%clk 0:00:39]}  Ka6 {[%clk 0:01:43]} 45. Rc8 {[%clk 0:00:34]}  Kb7 {[%clk 0:01:43]} 46. Rc7+ {[%clk 0:00:34]}  Kb8 {[%clk 0:01:42]} 47. Rc6 {[%clk 0:00:29]}  a2 {[%clk 0:01:40]} 48. Rxb6+ {[%clk 0:00:22]}  Ka7 {[%clk 0:01:40]} 0-1


[Site "https://www.chess.com"]

[Event "Titled Tuesday Blitz January 31 Late 2023"]
[White "Good, Daniel"]
[Black "Melikhov, Evgeny V."]
[WhiteFideId "1302388"]
[BlackFideId "4122046"]
[WhiteElo "2141"]
[BlackElo "2269"]
[Result "0-1"]
[Round "06"]
[TimeControl "180+2"]
[Date "2023.01.31"]
[WhiteClock "0:00:03"]
[BlackClock "0:00:10"]

1. d4 {[%clk 0:02:59]}  Nf6 {[%clk 0:02:59]} 2. c4 {[%clk 0:02:57]}  e6 {[%clk 0:02:59]} 3. Nf3 {[%clk 0:02:53]}  d5 {[%clk 0:02:58]} 4. Nc3 {[%clk 0:02:51]}  Bb4 {[%clk 0:02:58]} 5. cxd5 {[%clk 0:02:47]}  exd5 {[%clk 0:02:58]} 6. Bg5 {[%clk 0:02:45]}  h6 {[%clk 0:02:58]} 7. Bh4 {[%clk 0:02:43]}  c5 {[%clk 0:02:53]} 8. dxc5 {[%clk 0:02:19]}  g5 {[%clk 0:02:52]} 9. Bg3 {[%clk 0:02:18]}  Qa5 {[%clk 0:02:52]} 10. Be5 {[%clk 0:02:08]}  Nbd7 {[%clk 0:02:51]} 11. Bd4 {[%clk 0:02:06]}  Bxc5 {[%clk 0:02:43]} 12. e3 {[%clk 0:02:06]}  Bxd4 {[%clk 0:02:39]} 13. Nxd4 {[%clk 0:02:03]}  Ne4 {[%clk 0:02:36]} 14. Nb5 {[%clk 0:01:52]}  Ndf6 {[%clk 0:02:02]} 15. Bd3 {[%clk 0:01:51]}  Nxc3 {[%clk 0:01:57]} 16. Nxc3 {[%clk 0:01:49]}  Be6 {[%clk 0:01:55]} 17. Bb5+ {[%clk 0:01:36]}  Kf8 {[%clk 0:01:52]} 18. Qd4 {[%clk 0:01:33]}  Kg7 {[%clk 0:01:43]} 19. O-O {[%clk 0:01:32]}  a6 {[%clk 0:01:28]} 20. Bd3 {[%clk 0:01:31]}  Rac8 {[%clk 0:01:26]} 21. f4 {[%clk 0:01:12]}  Qc5 {[%clk 0:01:26]} 22. Qe5 {[%clk 0:01:12]}  Qc7 {[%clk 0:01:26]} 23. Qd4 {[%clk 0:01:12]}  Qc5 {[%clk 0:01:25]} 24. fxg5 {[%clk 0:00:58]}  Qxd4 {[%clk 0:01:25]} 25. gxh6+ {[%clk 0:00:59]}  Rxh6 {[%clk 0:01:20]} 26. exd4 {[%clk 0:01:00]}  Rch8 {[%clk 0:01:00]} 27. h3 {[%clk 0:00:56]}  Bxh3 {[%clk 0:01:00]} 28. gxh3 {[%clk 0:00:52]}  Rxh3 {[%clk 0:01:00]} 29. Bf5 {[%clk 0:00:48]}  Rh2 {[%clk 0:00:32]} 30. Rae1 {[%clk 0:00:19]}  Rxb2 {[%clk 0:00:29]} 31. Rf2 {[%clk 0:00:14]}  Rh1+ {[%clk 0:00:27]} 32. Kxh1 {[%clk 0:00:14]}  Rxf2 {[%clk 0:00:28]} 33. Bd3 {[%clk 0:00:13]}  Rd2 {[%clk 0:00:23]} 34. Re3 {[%clk 0:00:12]}  Ng4 {[%clk 0:00:21]} 35. Rg3 {[%clk 0:00:13]}  Kf8 {[%clk 0:00:22]} 36. Rxg4 {[%clk 0:00:11]}  Rxd3 {[%clk 0:00:22]} 37. Nxd5 {[%clk 0:00:12]}  Rd1+ {[%clk 0:00:21]} 38. Kg2 {[%clk 0:00:12]}  Rd2+ {[%clk 0:00:21]} 39. Kf3 {[%clk 0:00:12]}  Rxa2 {[%clk 0:00:22]} 40. Re4 {[%clk 0:00:12]}  a5 {[%clk 0:00:21]} 41. Re7 {[%clk 0:00:08]}  b5 {[%clk 0:00:18]} 42. Rb7 {[%clk 0:00:07]}  b4 {[%clk 0:00:17]} 43. Ne3 {[%clk 0:00:05]}  Rd2 {[%clk 0:00:15]} 44. d5 {[%clk 0:00:04]}  Rb2 {[%clk 0:00:11]} 45. d6 {[%clk 0:00:03]}  Rd2 {[%clk 0:00:10]} 0-1


[Site "https://www.chess.com"]